[Event "Live Chess"]
[Site "Chess.com"]
[Date "2023.05.20"]
[Round "-"]
[White "BillythekidFellowes"]
[Black "Olisingapore"]
[Result "1-0"]
[WhiteElo "2019"]
[BlackElo "1908"]
[TimeControl "300"]
[EndTime "11:22:44 PDT"]
[Termination "BillythekidFellowes won by resignation"]

1. e4 {[%clk 0:04:58.2]} 1... c5 {[%clk 0:04:59.2]} 2. Nf3 {[%clk 0:04:57.2]}
2... d6 {[%clk 0:04:58.9]} 3. d4 {[%clk 0:04:55.7]} 3... cxd4 {[%clk 0:04:58.8]}
4. Qxd4 {[%clk 0:04:54.5]} 4... Nc6 {[%clk 0:04:57]} 5. Bb5 {[%clk 0:04:53.2]}
5... Bd7 {[%clk 0:04:55.6]} 6. Bxc6 {[%clk 0:04:51.5]} 6... Bxc6 {[%clk
0:04:55.5]} 7. Nc3 {[%clk 0:04:47.9]} 7... Nf6 {[%clk 0:04:55]} 8. Bg5 {[%clk
0:04:45.5]} 8... e6 {[%clk 0:04:53.9]} 9. O-O-O {[%clk 0:04:38.7]} 9... Be7
{[%clk 0:04:52.2]} 10. Rhe1 {[%clk 0:04:35]} 10... O-O {[%clk 0:04:43.2]} 11.
Qd3 {[%clk 0:04:22.5]} 11... Qa5 {[%clk 0:04:37.4]} 12. Qd2 {[%clk 0:04:13.4]}
12... b5 {[%clk 0:04:34.3]} 13. Kb1 {[%clk 0:04:07.2]} 13... b4 {[%clk
0:04:30.2]} 14. Bxf6 {[%clk 0:04:04.1]} 14... Bxf6 {[%clk 0:04:27.1]} 15. Ne2
{[%clk 0:04:03.1]} 15... Bxe4 {[%clk 0:04:22.6]} 16. Nfd4 {[%clk 0:03:58.4]}
16... Rac8 {[%clk 0:04:21.5]} 17. f3 {[%clk 0:03:53.5]} 17... Bg6 {[%clk
0:04:15.2]} 18. Nf4 {[%clk 0:03:46]} 18... Bg5 {[%clk 0:04:10.5]} 19. h4 {[%clk
0:03:41.7]} 19... Bxf4 {[%clk 0:04:03.6]} 20. Qxf4 {[%clk 0:03:26.2]} 20... e5
{[%clk 0:04:02.8]} 21. Qg5 {[%clk 0:03:25.5]} 21... exd4 {[%clk 0:03:58.6]} 22.
Qxa5 {[%clk 0:03:21.9]} 22... Bxc2+ {[%clk 0:03:54.4]} 23. Ka1 {[%clk 0:03:21]}
23... Bxd1 {[%clk 0:03:28]} 24. Rxd1 {[%clk 0:03:20.9]} 24... Rfe8 {[%clk
0:03:23.6]} 25. Qxb4 {[%clk 0:03:19]} 25... Re2 {[%clk 0:03:21.1]} 26. Qxd4
{[%clk 0:03:17.8]} 26... Rxg2 {[%clk 0:03:10.3]} 27. Qxd6 {[%clk 0:03:14.7]}
27... h6 {[%clk 0:03:08.5]} 28. a4 {[%clk 0:02:59.2]} 28... Rcc2 {[%clk
0:03:02.1]} 29. Qe5 {[%clk 0:02:46.5]} 29... Rc8 {[%clk 0:02:21.3]} 30. Qa5
{[%clk 0:02:39.8]} 30... Rb8 {[%clk 0:02:08.8]} 31. Rd8+ {[%clk 0:02:37.7]}
31... Rxd8 {[%clk 0:02:02.4]} 32. Qxd8+ {[%clk 0:02:37.6]} 32... Kh7 {[%clk
0:01:59.5]} 33. Qe7 {[%clk 0:02:36.7]} 33... Rg1+ {[%clk 0:01:57.5]} 34. Ka2
{[%clk 0:02:34.3]} 34... Rg3 {[%clk 0:01:56.3]} 35. Qxf7 {[%clk 0:02:32.3]} 1-0

[Event "Live Chess"]
[Site "Chess.com"]
[Date "2023.05.20"]
[Round "-"]
[White "Ocelot32"]
[Black "chessleanstrategist"]
[Result "1-0"]
[WhiteElo "1396"]
[BlackElo "400"]
[TimeControl "300"]
[EndTime "11:22:51 PDT"]
[Termination "Ocelot32 won by resignation"]

1. e4 {[%clk 0:04:59.5]} 1... d6 {[%clk 0:04:58.4]} 2. Nf3 {[%clk 0:04:52.3]}
2... Nf6 {[%clk 0:04:55.4]} 3. Nc3 {[%clk 0:04:49.9]} 3... g6 {[%clk 0:04:48.4]}
4. d4 {[%clk 0:04:48.2]} 4... Bg7 {[%clk 0:04:40.4]} 5. Bc4 {[%clk 0:04:47.2]}
5... O-O {[%clk 0:04:38]} 6. O-O {[%clk 0:04:45.9]} 6... e6 {[%clk 0:04:26]} 7.
Re1 {[%clk 0:04:38.8]} 7... Nbd7 {[%clk 0:04:06.2]} 8. d5 {[%clk 0:04:29.7]}
8... exd5 {[%clk 0:03:46.8]} 9. exd5 {[%clk 0:04:25.7]} 9... Nb6 {[%clk
0:03:31.9]} 10. Bb3 {[%clk 0:04:21.5]} 10... c6 {[%clk 0:03:20.2]} 11. dxc6
{[%clk 0:04:18.5]} 11... bxc6 {[%clk 0:03:17.7]} 12. Bg5 {[%clk 0:04:15.8]}
12... d5 {[%clk 0:02:55.5]} 13. Ne2 {[%clk 0:03:51.9]} 13... Qc7 {[%clk
0:02:31]} 14. c3 {[%clk 0:03:47.9]} 14... Ne4 {[%clk 0:02:21]} 15. Bf4 {[%clk
0:03:43.1]} 15... Bf5 {[%clk 0:01:57.5]} 16. Bxc7 {[%clk 0:03:39]} 1-0

[Event "Live Chess"]
[Site "Chess.com"]
[Date "2023.05.20"]
[Round "-"]
[White "Doge_Dandolo"]
[Black "Ferrarifan27"]
[Result "0-1"]
[WhiteElo "2097"]
[BlackElo "2103"]
[TimeControl "300"]
[EndTime "11:22:53 PDT"]
[Termination "Ferrarifan27 won by resignation"]

1. Nf3 {[%clk 0:04:59.1]} 1... Nf6 {[%clk 0:04:57.8]} 2. c4 {[%clk 0:04:58.1]}
2... e6 {[%clk 0:04:45.3]} 3. g3 {[%clk 0:04:55.3]} 3... d5 {[%clk 0:04:44.5]}
4. Bg2 {[%clk 0:04:54.5]} 4... Be7 {[%clk 0:04:43.1]} 5. O-O {[%clk 0:04:53.8]}
5... O-O {[%clk 0:04:42.3]} 6. d4 {[%clk 0:04:52.8]} 6... c6 {[%clk 0:04:41.5]}
7. Qc2 {[%clk 0:04:51.9]} 7... b6 {[%clk 0:04:37.6]} 8. Nc3 {[%clk 0:04:48.5]}
8... Ba6 {[%clk 0:04:33.1]} 9. b3 {[%clk 0:04:45.4]} 9... dxc4 {[%clk 0:04:32]}
10. bxc4 {[%clk 0:04:42.4]} 10... Bxc4 {[%clk 0:04:31.1]} 11. Rd1 {[%clk
0:04:38.2]} 11... Ba6 {[%clk 0:04:25.3]} 12. Bf4 {[%clk 0:04:32.1]} 12... Bb7
{[%clk 0:04:20.2]} 13. Ne5 {[%clk 0:04:27.4]} 13... Nd5 {[%clk 0:04:16.7]} 14.
Bd2 {[%clk 0:04:18.5]} 14... Nd7 {[%clk 0:04:12.1]} 15. Nxd7 {[%clk 0:04:14.9]}
15... Qxd7 {[%clk 0:04:11.1]} 16. Ne4 {[%clk 0:04:10]} 16... Rac8 {[%clk
0:04:07.4]} 17. Rac1 {[%clk 0:04:07.9]} 17... Nf6 {[%clk 0:04:00.3]} 18. Nxf6+
{[%clk 0:04:03.1]} 18... Bxf6 {[%clk 0:03:59.1]} 19. Be3 {[%clk 0:03:53.2]}
19... Qe7 {[%clk 0:03:51.7]} 20. Qe4 {[%clk 0:03:47.2]} 20... Rfd8 {[%clk
0:03:46.6]} 21. Bf4 {[%clk 0:03:44]} 21... Rd7 {[%clk 0:03:41.8]} 22. Qb1 {[%clk
0:03:24.8]} 22... Rxd4 {[%clk 0:03:27.7]} 23. Be3 {[%clk 0:03:21.8]} 23... Rxd1+
{[%clk 0:03:24.6]} 24. Rxd1 {[%clk 0:03:20.6]} 24... Rd8 {[%clk 0:03:23.5]} 25.
Rd3 {[%clk 0:03:18.9]} 25... Rxd3 {[%clk 0:03:21.3]} 26. Qxd3 {[%clk 0:03:17.8]}
26... Qd8 {[%clk 0:03:20.3]} 27. Qa3 {[%clk 0:03:10.3]} 27... Qd1+ {[%clk
0:03:11.9]} 28. Bf1 {[%clk 0:03:07.5]} 28... Qd5 {[%clk 0:02:51.7]} 29. Qxa7
{[%clk 0:03:02.1]} 29... c5 {[%clk 0:02:49.9]} 30. Qb8+ {[%clk 0:02:57.5]} 30...
Bd8 {[%clk 0:02:48.6]} 31. f3 {[%clk 0:02:55.9]} 31... h6 {[%clk 0:02:33.7]} 32.
Bh3 {[%clk 0:02:51.5]} 32... Kh7 {[%clk 0:02:30.5]} 33. Kf2 {[%clk 0:02:47.6]}
33... Bf6 {[%clk 0:02:28.1]} 34. Qc7 {[%clk 0:02:44.5]} 34... Kg6 {[%clk
0:02:22.1]} 35. Qxb6 {[%clk 0:02:37.9]} 35... Bd4 {[%clk 0:02:14.2]} 36. Qb1+
{[%clk 0:02:24.3]} 36... Kf6 {[%clk 0:02:09.7]} 37. Qd3 {[%clk 0:02:18.2]} 37...
Bxe3+ {[%clk 0:02:08]} 38. Qxe3 {[%clk 0:02:16.7]} 38... c4 {[%clk 0:01:56]} 39.
Qc3+ {[%clk 0:02:11.8]} 39... e5 {[%clk 0:01:51.3]} 40. a4 {[%clk 0:02:06.2]}
40... Qd4+ {[%clk 0:01:49.1]} 41. Qe3 {[%clk 0:02:03.8]} 41... c3 {[%clk
0:01:45.4]} 42. Qxd4 {[%clk 0:01:59.5]} 42... exd4 {[%clk 0:01:44]} 43. Ke1
{[%clk 0:01:58.9]} 43... Bc6 {[%clk 0:01:35]} 44. a5 {[%clk 0:01:57.1]} 44...
Bb5 {[%clk 0:01:26.4]} 45. Bc8 {[%clk 0:01:53.1]} 45... Ke7 {[%clk 0:01:07.6]}
46. a6 {[%clk 0:01:51.1]} 46... Kd8 {[%clk 0:01:06.3]} 47. Bb7 {[%clk
0:01:47.5]} 47... Kc7 {[%clk 0:01:04.3]} 48. Bd5 {[%clk 0:01:42.2]} 48... Bxa6
{[%clk 0:00:57.6]} 49. Bxf7 {[%clk 0:01:41.1]} 49... Kd6 {[%clk 0:00:56.5]} 50.
Bg6 {[%clk 0:01:39.7]} 50... Kc5 {[%clk 0:00:52.5]} 51. Kd1 {[%clk 0:01:38.7]}
51... Kb4 {[%clk 0:00:48.7]} 52. f4 {[%clk 0:01:35.2]} 52... Kb3 {[%clk
0:00:47.6]} 53. Kc1 {[%clk 0:01:33.7]} 53... Bxe2 {[%clk 0:00:44]} 54. h3 {[%clk
0:01:31.2]} 54... d3 {[%clk 0:00:43]} 55. g4 {[%clk 0:01:28.1]} 55... d2+ {[%clk
0:00:42.1]} 0-1

[Event "Live Chess"]
[Site "Chess.com"]
[Date "2023.05.20"]
[Round "-"]
[White "OceanFloater"]
[Black "SavagePawn7"]
[Result "0-1"]
[WhiteElo "960"]
[BlackElo "762"]
[TimeControl "300"]
[EndTime "11:22:54 PDT"]
[Termination "SavagePawn7 won by checkmate"]

1. e4 {[%clk 0:04:59.5]} 1... d5 {[%clk 0:04:57.7]} 2. exd5 {[%clk 0:04:57.5]}
2... Nf6 {[%clk 0:04:56.4]} 3. Nc3 {[%clk 0:04:55.9]} 3... Nxd5 {[%clk
0:04:55.1]} 4. Nxd5 {[%clk 0:04:54.8]} 4... Qxd5 {[%clk 0:04:53.8]} 5. c4 {[%clk
0:04:49]} 5... Qe6+ {[%clk 0:04:40.9]} 6. Qe2 {[%clk 0:04:45.2]} 6... Qxe2+
{[%clk 0:04:39]} 7. Bxe2 {[%clk 0:04:43.9]} 7... e5 {[%clk 0:04:31.2]} 8. Nf3
{[%clk 0:04:42.7]} 8... Nc6 {[%clk 0:04:29]} 9. a3 {[%clk 0:04:38.4]} 9... Bg4
{[%clk 0:04:24.6]} 10. b4 {[%clk 0:04:33.6]} 10... Nd4 {[%clk 0:04:17.7]} 11.
Nxd4 {[%clk 0:04:30.5]} 11... exd4 {[%clk 0:04:16.5]} 12. Bxg4 {[%clk
0:04:29.1]} 12... Bd6 {[%clk 0:04:10.6]} 13. O-O {[%clk 0:04:27.5]} 13... O-O
{[%clk 0:04:07.9]} 14. c5 {[%clk 0:04:26.1]} 14... Be7 {[%clk 0:04:02.2]} 15.
Re1 {[%clk 0:04:25.3]} 15... Rae8 {[%clk 0:03:55.6]} 16. d3 {[%clk 0:04:23.8]}
16... Bf6 {[%clk 0:03:47.1]} 17. Rxe8 {[%clk 0:04:18.8]} 17... Rxe8 {[%clk
0:03:45.9]} 18. Bb2 {[%clk 0:04:18.4]} 18... b6 {[%clk 0:03:36.2]} 19. c6 {[%clk
0:04:15.8]} 19... a5 {[%clk 0:03:33.4]} 20. b5 {[%clk 0:04:14.5]} 20... a4
{[%clk 0:03:27.3]} 21. Rc1 {[%clk 0:04:07.8]} 21... g6 {[%clk 0:03:18.8]} 22. h3
{[%clk 0:04:06.2]} 22... h5 {[%clk 0:03:16.9]} 23. Bd7 {[%clk 0:04:04.9]} 23...
Re2 {[%clk 0:03:07.8]} 24. Bxd4 {[%clk 0:03:42.5]} 24... Bxd4 {[%clk 0:03:05.5]}
25. Rc4 {[%clk 0:03:42]} 25... Be5 {[%clk 0:02:53.5]} 26. Rxa4 {[%clk 0:03:38]}
26... Re1# {[%clk 0:02:51.8]} 0-1

[Event "Live Chess"]
[Site "Chess.com"]
[Date "2023.05.20"]
[Round "-"]
[White "bristolunichess"]
[Black "YF22Raptor"]
[Result "1-0"]
[WhiteElo "1833"]
[BlackElo "1017"]
[TimeControl "300"]
[EndTime "11:22:58 PDT"]
[Termination "bristolunichess won by checkmate"]

1. e4 {[%clk 0:04:55.1]} 1... c6 {[%clk 0:04:59.1]} 2. d4 {[%clk 0:04:53.7]}
2... d5 {[%clk 0:04:58.5]} 3. e5 {[%clk 0:04:49.1]} 3... Bf5 {[%clk 0:04:57.4]}
4. Nf3 {[%clk 0:04:48.1]} 4... e6 {[%clk 0:04:56.4]} 5. Be2 {[%clk 0:04:44.9]}
5... c5 {[%clk 0:04:55.1]} 6. c3 {[%clk 0:04:44]} 6... Qb6 {[%clk 0:04:53.6]} 7.
a3 {[%clk 0:04:43.1]} 7... Bg4 {[%clk 0:04:49.9]} 8. O-O {[%clk 0:04:40.3]} 8...
Bxf3 {[%clk 0:04:48.9]} 9. Bxf3 {[%clk 0:04:38.8]} 9... Nc6 {[%clk 0:04:48.2]}
10. Qa4 {[%clk 0:03:57.4]} 10... cxd4 {[%clk 0:04:42]} 11. b4 {[%clk 0:03:50.2]}
11... a6 {[%clk 0:04:32.9]} 12. Rd1 {[%clk 0:03:35]} 12... dxc3 {[%clk
0:04:30.2]} 13. Nxc3 {[%clk 0:03:31.6]} 13... Ne7 {[%clk 0:04:23.3]} 14. Be3
{[%clk 0:03:00.2]} 14... Qc7 {[%clk 0:04:11.9]} 15. Rac1 {[%clk 0:02:48.2]}
15... g6 {[%clk 0:04:06.5]} 16. Bd4 {[%clk 0:01:56.3]} 16... Bg7 {[%clk
0:03:59.5]} 17. Nb5 {[%clk 0:01:55.5]} 17... Qb8 {[%clk 0:03:45]} 18. Nd6+
{[%clk 0:01:53.2]} 18... Kd7 {[%clk 0:03:38.4]} 19. Nxf7 {[%clk 0:01:25.8]}
19... Rf8 {[%clk 0:03:31]} 20. Ng5 {[%clk 0:00:54.5]} 20... b5 {[%clk
0:03:20.4]} 21. Qb3 {[%clk 0:00:43]} 21... Nxd4 {[%clk 0:03:09.8]} 22. Rxd4
{[%clk 0:00:36.1]} 22... Nc6 {[%clk 0:03:08.4]} 23. Rxd5+ {[%clk 0:00:34]} 23...
exd5 {[%clk 0:03:04.6]} 24. Qxd5+ {[%clk 0:00:33.7]} 24... Ke7 {[%clk 0:02:46]}
25. Qe6+ {[%clk 0:00:32.9]} 25... Kd8 {[%clk 0:02:39]} 26. Rxc6 {[%clk
0:00:31.8]} 26... Bxe5 {[%clk 0:02:29.3]} 27. Qd5+ {[%clk 0:00:19.9]} 27... Ke7
{[%clk 0:02:20]} 28. Re6# {[%clk 0:00:19.1]} 1-0

[Event "Live Chess"]
[Site "Chess.com"]
[Date "2023.05.20"]
[Round "-"]
[White "Ayursworld"]
[Black "Richardallis"]
[Result "0-1"]
[WhiteElo "1316"]
[BlackElo "1683"]
[TimeControl "300"]
[EndTime "11:22:58 PDT"]
[Termination "Richardallis won by checkmate"]

1. e4 {[%clk 0:04:58.1]} 1... d5 {[%clk 0:04:57.9]} 2. exd5 {[%clk 0:04:55.9]}
2... Nf6 {[%clk 0:04:56.7]} 3. Nc3 {[%clk 0:04:53.8]} 3... Nxd5 {[%clk
0:04:55.6]} 4. Nxd5 {[%clk 0:04:52.1]} 4... Qxd5 {[%clk 0:04:55.1]} 5. Nf3
{[%clk 0:04:49.2]} 5... Bf5 {[%clk 0:04:52.9]} 6. d4 {[%clk 0:04:47.3]} 6...
Qe4+ {[%clk 0:04:51.7]} 7. Be2 {[%clk 0:04:42.4]} 7... Qxc2 {[%clk 0:04:51.2]}
8. Qxc2 {[%clk 0:04:40]} 8... Bxc2 {[%clk 0:04:50.7]} 9. Bd2 {[%clk 0:04:37.5]}
9... c6 {[%clk 0:04:49.6]} 10. O-O {[%clk 0:04:35.9]} 10... e6 {[%clk
0:04:48.3]} 11. Rfc1 {[%clk 0:04:33.2]} 11... Be4 {[%clk 0:04:46.7]} 12. a3
{[%clk 0:04:26.6]} 12... Bd6 {[%clk 0:04:44.3]} 13. Bb4 {[%clk 0:04:21.6]} 13...
Bxb4 {[%clk 0:04:42.7]} 14. axb4 {[%clk 0:04:19.6]} 14... a6 {[%clk 0:04:40.1]}
15. Re1 {[%clk 0:04:13.4]} 15... Nd7 {[%clk 0:04:34.1]} 16. Bd1 {[%clk
0:04:11.8]} 16... Bd5 {[%clk 0:04:32.6]} 17. Ne5 {[%clk 0:04:09.9]} 17... Nxe5
{[%clk 0:04:31.1]} 18. dxe5 {[%clk 0:04:08.2]} 18... O-O {[%clk 0:04:29.3]} 19.
Be2 {[%clk 0:04:05.4]} 19... Rad8 {[%clk 0:04:27]} 20. Rad1 {[%clk 0:03:59.8]}
20... Bb3 {[%clk 0:04:25.5]} 21. Rxd8 {[%clk 0:03:57.2]} 21... Rxd8 {[%clk
0:04:25]} 22. h3 {[%clk 0:03:53.7]} 22... Rd2 {[%clk 0:04:23.4]} 23. Bf3 {[%clk
0:03:51.6]} 23... g6 {[%clk 0:04:20.6]} 24. Rb1 {[%clk 0:03:48]} 24... Ba2
{[%clk 0:04:18.2]} 25. Rc1 {[%clk 0:03:43.7]} 25... Rxb2 {[%clk 0:04:16.1]} 26.
Rd1 {[%clk 0:03:42.2]} 26... Rb1 {[%clk 0:04:12.9]} 27. Rxb1 {[%clk 0:03:40.1]}
27... Bxb1 {[%clk 0:04:12.4]} 28. Kh2 {[%clk 0:03:37.9]} 28... Kf8 {[%clk
0:04:11.3]} 29. g4 {[%clk 0:03:37]} 29... Ke7 {[%clk 0:04:10.6]} 30. h4 {[%clk
0:03:35.8]} 30... h6 {[%clk 0:04:07.1]} 31. g5 {[%clk 0:03:34.7]} 31... hxg5
{[%clk 0:04:05.9]} 32. hxg5 {[%clk 0:03:33.8]} 32... Kd7 {[%clk 0:04:03.9]} 33.
Kg2 {[%clk 0:03:32.4]} 33... Kc7 {[%clk 0:04:02.3]} 34. Bd1 {[%clk 0:03:28.5]}
34... b6 {[%clk 0:03:38.2]} 35. f4 {[%clk 0:03:27.1]} 35... c5 {[%clk
0:03:22.3]} 36. bxc5 {[%clk 0:03:24.9]} 36... bxc5 {[%clk 0:03:20.5]} 37. Kf2
{[%clk 0:03:24.3]} 37... Bd3 {[%clk 0:03:15.9]} 38. Ke3 {[%clk 0:03:23.1]} 38...
Bf5 {[%clk 0:03:03.3]} 39. Bb3 {[%clk 0:03:18.7]} 39... a5 {[%clk 0:02:56.7]}
40. Kd2 {[%clk 0:03:17.3]} 40... Kc6 {[%clk 0:02:54.7]} 41. Kc3 {[%clk 0:03:16]}
41... Kb5 {[%clk 0:02:52.6]} 42. Bc4+ {[%clk 0:03:14.3]} 42... Ka4 {[%clk
0:02:51.3]} 43. Bb3+ {[%clk 0:03:13.1]} 43... Ka3 {[%clk 0:02:50.3]} 44. Kc4
{[%clk 0:03:11.8]} 44... Bd3+ {[%clk 0:02:46.2]} 45. Kxd3 {[%clk 0:03:08.9]}
45... Kxb3 {[%clk 0:02:44.4]} 46. Kd2 {[%clk 0:03:07.9]} 46... Kb2 {[%clk
0:02:42.6]} 47. Kd3 {[%clk 0:03:06.9]} 47... a4 {[%clk 0:02:41.8]} 48. Kc4
{[%clk 0:03:05.6]} 48... a3 {[%clk 0:02:40.7]} 49. Kxc5 {[%clk 0:03:04.2]} 49...
a2 {[%clk 0:02:40.3]} 50. Kd6 {[%clk 0:03:01.9]} 50... a1=Q {[%clk 0:02:39.1]}
51. Ke7 {[%clk 0:03:01.7]} 51... Qa7+ {[%clk 0:02:38.1]} 52. Kf6 {[%clk
0:03:00.4]} 52... Qd7 {[%clk 0:02:34.2]} 53. Kg7 {[%clk 0:02:59.3]} 53... Kc3
{[%clk 0:02:33.7]} 54. Kf6 {[%clk 0:02:58]} 54... Kd4 {[%clk 0:02:33.2]} 55. Kg7
{[%clk 0:02:56.3]} 55... Ke4 {[%clk 0:02:32.7]} 56. Kf6 {[%clk 0:02:54.4]} 56...
Kxf4 {[%clk 0:02:31.3]} 57. Kg7 {[%clk 0:02:53.4]} 57... Kxg5 {[%clk 0:02:30.3]}
58. Kf8 {[%clk 0:02:50.6]} 58... Kf5 {[%clk 0:02:28.9]} 59. Kg7 {[%clk
0:02:47.6]} 59... g5 {[%clk 0:02:28.1]} 60. Kf8 {[%clk 0:02:44.8]} 60... g4
{[%clk 0:02:27.5]} 61. Kg7 {[%clk 0:02:43.7]} 61... g3 {[%clk 0:02:26.9]} 62.
Kf8 {[%clk 0:02:42.3]} 62... g2 {[%clk 0:02:26.4]} 63. Kg7 {[%clk 0:02:41.5]}
63... g1=Q+ {[%clk 0:02:24.8]} 64. Kf8 {[%clk 0:02:40.6]} 64... Qd8+ {[%clk
0:02:23.9]} 65. Kxf7 {[%clk 0:02:39.3]} 65... Qg6# {[%clk 0:02:21.3]} 0-1

[Event "Live Chess"]
[Site "Chess.com"]
[Date "2023.05.20"]
[Round "-"]
[White "whitedjohn"]
[Black "gmnorfolk"]
[Result "0-1"]
[WhiteElo "1675"]
[BlackElo "2117"]
[TimeControl "300"]
[EndTime "11:23:04 PDT"]
[Termination "gmnorfolk won by checkmate"]

1. e4 {[%clk 0:04:56.3]} 1... e5 {[%clk 0:04:59]} 2. Nf3 {[%clk 0:04:52.4]} 2...
Nc6 {[%clk 0:04:58.1]} 3. Bb5 {[%clk 0:04:48.5]} 3... a6 {[%clk 0:04:57]} 4. Ba4
{[%clk 0:04:46]} 4... Nf6 {[%clk 0:04:56.6]} 5. O-O {[%clk 0:04:44]} 5... Be7
{[%clk 0:04:56.1]} 6. Re1 {[%clk 0:04:42.2]} 6... b5 {[%clk 0:04:55.8]} 7. Bb3
{[%clk 0:04:40.5]} 7... O-O {[%clk 0:04:55.4]} 8. c3 {[%clk 0:04:39.1]} 8... d5
{[%clk 0:04:54.6]} 9. exd5 {[%clk 0:04:37.6]} 9... Nxd5 {[%clk 0:04:54.5]} 10.
Nxe5 {[%clk 0:04:35.5]} 10... Nxe5 {[%clk 0:04:53.7]} 11. Rxe5 {[%clk
0:04:33.7]} 11... c6 {[%clk 0:04:53.6]} 12. d4 {[%clk 0:04:31.2]} 12... Bd6
{[%clk 0:04:52.6]} 13. Re1 {[%clk 0:04:29.3]} 13... Qh4 {[%clk 0:04:51.9]} 14.
g3 {[%clk 0:04:27.6]} 14... Qh3 {[%clk 0:04:51.2]} 15. Re4 {[%clk 0:04:25.9]}
15... g5 {[%clk 0:04:42.6]} 16. Qf3 {[%clk 0:04:24]} 16... Bf5 {[%clk 0:04:35]}
17. Re1 {[%clk 0:04:10.4]} 17... Rae8 {[%clk 0:04:31.8]} 18. Rxe8 {[%clk
0:03:34.3]} 18... Rxe8 {[%clk 0:04:26.1]} 19. Qg2 {[%clk 0:03:21.3]} 19... Re1+
{[%clk 0:04:23.5]} 20. Qf1 {[%clk 0:03:19.3]} 20... Rxf1# {[%clk 0:04:21.9]} 0-1

[Event "Live Chess"]
[Site "Chess.com"]
[Date "2023.05.20"]
[Round "-"]
[White "Supertromp"]
[Black "diana21strabt"]
[Result "1-0"]
[WhiteElo "2182"]
[BlackElo "1707"]
[TimeControl "300"]
[EndTime "11:23:22 PDT"]
[Termination "Supertromp won by checkmate"]

1. e4 {[%clk 0:04:59]} 1... d5 {[%clk 0:04:58.8]} 2. exd5 {[%clk 0:04:58.2]}
2... Qxd5 {[%clk 0:04:57.7]} 3. Nf3 {[%clk 0:04:57.7]} 3... Nf6 {[%clk
0:04:56.4]} 4. d4 {[%clk 0:04:52.5]} 4... Bg4 {[%clk 0:04:55]} 5. Be2 {[%clk
0:04:47.9]} 5... Nc6 {[%clk 0:04:53.1]} 6. h3 {[%clk 0:04:47.1]} 6... Bh5 {[%clk
0:04:50.2]} 7. c4 {[%clk 0:04:43.3]} 7... Qe4 {[%clk 0:04:47.7]} 8. Nc3 {[%clk
0:04:38.9]} 8... Qg6 {[%clk 0:04:27]} 9. g4 {[%clk 0:04:36.2]} 9... Nxg4 {[%clk
0:04:22.8]} 10. hxg4 {[%clk 0:04:34]} 10... Bxg4 {[%clk 0:04:21.9]} 11. Be3
{[%clk 0:04:06]} 11... O-O-O {[%clk 0:04:16.2]} 12. d5 {[%clk 0:04:01]} 12... e6
{[%clk 0:04:12.5]} 13. Qa4 {[%clk 0:03:56.7]} 13... exd5 {[%clk 0:04:08.3]} 14.
cxd5 {[%clk 0:03:55.9]} 14... Bxf3 {[%clk 0:03:59]} 15. Bxf3 {[%clk 0:03:55]}
15... Ne5 {[%clk 0:03:57.7]} 16. Be2 {[%clk 0:03:52.1]} 16... a6 {[%clk
0:03:54.6]} 17. O-O-O {[%clk 0:03:49.2]} 17... Bd6 {[%clk 0:03:10.8]} 18. f4
{[%clk 0:03:48]} 18... Ng4 {[%clk 0:03:08.3]} 19. f5 {[%clk 0:03:43.3]} 19...
Nxe3 {[%clk 0:02:56.7]} 20. fxg6 {[%clk 0:03:41.8]} 20... Nxd1 {[%clk
0:02:55.9]} 21. Rxd1 {[%clk 0:03:40.3]} 21... hxg6 {[%clk 0:02:52.4]} 22. Bxa6
{[%clk 0:02:42]} 22... bxa6 {[%clk 0:02:49.8]} 23. Qxa6+ {[%clk 0:02:41.9]}
23... Kd7 {[%clk 0:02:48.8]} 24. Re1 {[%clk 0:02:40.9]} 24... Rde8 {[%clk
0:02:45.8]} 25. Qc6+ {[%clk 0:02:37.1]} 25... Kd8 {[%clk 0:02:44.9]} 26. Rxe8+
{[%clk 0:02:29.7]} 26... Rxe8 {[%clk 0:02:42.5]} 27. a4 {[%clk 0:02:18.3]} 27...
Re1+ {[%clk 0:02:31.3]} 28. Kc2 {[%clk 0:02:17.4]} 28... Ra1 {[%clk 0:02:29.3]}
29. Ne4 {[%clk 0:02:12.4]} 29... Ke7 {[%clk 0:02:26.7]} 30. Nxd6 {[%clk
0:02:11.5]} 30... cxd6 {[%clk 0:02:25.8]} 31. Qc7+ {[%clk 0:02:10.8]} 31... Kf6
{[%clk 0:02:24.9]} 32. Qxd6+ {[%clk 0:02:10.3]} 32... Kf5 {[%clk 0:02:24.1]} 33.
Qd7+ {[%clk 0:02:04.8]} 33... Kf6 {[%clk 0:02:21.4]} 34. d6 {[%clk 0:02:04.3]}
34... g5 {[%clk 0:02:18.5]} 35. Qe7+ {[%clk 0:02:03.8]} 35... Kg6 {[%clk
0:02:17.2]} 36. d7 {[%clk 0:02:02.8]} 36... Rxa4 {[%clk 0:02:13.2]} 37. d8=Q
{[%clk 0:02:00.8]} 37... Rc4+ {[%clk 0:02:12]} 38. Kd3 {[%clk 0:02:00.3]} 38...
Rf4 {[%clk 0:02:11.1]} 39. Qe4+ {[%clk 0:01:58.6]} 39... Rxe4 {[%clk 0:02:07.7]}
40. Kxe4 {[%clk 0:01:58.5]} 40... f5+ {[%clk 0:02:06.6]} 41. Ke5 {[%clk
0:01:56.9]} 41... g4 {[%clk 0:02:01.2]} 42. Kf4 {[%clk 0:01:55.3]} 42... Kh6
{[%clk 0:01:57.7]} 43. Kxf5 {[%clk 0:01:51.8]} 43... g3 {[%clk 0:01:55.6]} 44.
Qh4# {[%clk 0:01:50.6]} 1-0

[Event "Live Chess"]
[Site "Chess.com"]
[Date "2023.05.20"]
[Round "-"]
[White "Rusty_Bridges"]
[Black "LiamClery2020"]
[Result "0-1"]
[WhiteElo "1363"]
[BlackElo "2088"]
[TimeControl "300"]
[EndTime "11:23:22 PDT"]
[Termination "LiamClery2020 won by checkmate"]

1. e4 {[%clk 0:04:55.2]} 1... Nf6 {[%clk 0:04:59.2]} 2. e5 {[%clk 0:04:53.3]}
2... Nd5 {[%clk 0:04:58.1]} 3. d4 {[%clk 0:04:52.5]} 3... d6 {[%clk 0:04:57.2]}
4. exd6 {[%clk 0:04:50.8]} 4... cxd6 {[%clk 0:04:55.4]} 5. Nf3 {[%clk 0:04:50]}
5... g6 {[%clk 0:04:53.1]} 6. Bd3 {[%clk 0:04:48.1]} 6... Bg7 {[%clk 0:04:51.9]}
7. c3 {[%clk 0:04:46.8]} 7... Nc6 {[%clk 0:04:50.5]} 8. h4 {[%clk 0:04:41]} 8...
Bg4 {[%clk 0:04:47.2]} 9. Nbd2 {[%clk 0:04:37.1]} 9... Nf4 {[%clk 0:04:44.5]}
10. Bf1 {[%clk 0:04:32.5]} 10... e5 {[%clk 0:04:43.3]} 11. d5 {[%clk 0:04:29.4]}
11... Nxd5 {[%clk 0:04:38.4]} 12. Ne4 {[%clk 0:04:19.4]} 12... Be6 {[%clk
0:04:32.8]} 13. Nfg5 {[%clk 0:04:13.4]} 13... Qe7 {[%clk 0:04:29.5]} 14. Bb5
{[%clk 0:04:10.2]} 14... O-O {[%clk 0:04:27.3]} 15. h5 {[%clk 0:04:05.1]} 15...
f5 {[%clk 0:04:25]} 16. Nxe6 {[%clk 0:04:03.4]} 16... Qxe6 {[%clk 0:04:18.2]}
17. hxg6 {[%clk 0:03:55.6]} 17... fxe4 {[%clk 0:04:13.6]} 18. gxh7+ {[%clk
0:03:34.2]} 18... Kh8 {[%clk 0:04:12.4]} 19. Bc4 {[%clk 0:03:22.5]} 19... Nce7
{[%clk 0:04:10.3]} 20. Qh5 {[%clk 0:02:47.7]} 20... Qf6 {[%clk 0:04:05.8]} 21.
Rf1 {[%clk 0:02:32.8]} 21... Nf4 {[%clk 0:04:01.4]} 22. Qh2 {[%clk 0:02:09.7]}
22... Nd3+ {[%clk 0:03:55]} 23. Bxd3 {[%clk 0:02:07.9]} 23... exd3 {[%clk
0:03:54.9]} 24. Bd2 {[%clk 0:01:59.4]} 24... e4 {[%clk 0:03:49.7]} 25. O-O-O
{[%clk 0:01:56.1]} 25... Rac8 {[%clk 0:03:47.4]} 26. Be3 {[%clk 0:01:50.9]}
26... Rxc3+ {[%clk 0:03:45.6]} 27. Kb1 {[%clk 0:01:47]} 27... Rc1+ {[%clk
0:03:44.6]} 28. Rxc1 {[%clk 0:01:45.4]} 28... Qxb2# {[%clk 0:03:43.1]} 0-1